[Event "Late-Titled-Tuesday-Blitz-October-03-2023"]
[Site "Chess.com"]
[Date "2023.10.03"]
[Round "8"]
[White "quvnoq_muxlis"]
[Black "josiur"]
[Result "0-1"]
[WhiteElo "2744"]
[BlackElo "2521"]
[TimeControl "180+1"]
[EndTime "15:25:13 PDT"]
[Termination "josiur won by checkmate"]

1. e4 {[%clk 0:03:00.9]} 1... c6 {[%clk 0:02:59.9]} 2. d4 {[%clk 0:03:00.9]}
2... d5 {[%clk 0:03:00.8]} 3. Nc3 {[%clk 0:03:01.5]} 3... dxe4 {[%clk 0:03:01]}
4. Nxe4 {[%clk 0:03:02.4]} 4... Nf6 {[%clk 0:03:01.5]} 5. Nxf6+ {[%clk 0:03:03]}
5... exf6 {[%clk 0:03:02.4]} 6. c3 {[%clk 0:03:03.7]} 6... Bd6 {[%clk
0:03:02.2]} 7. Bd3 {[%clk 0:03:04.3]} 7... O-O {[%clk 0:03:02.8]} 8. Qc2 {[%clk
0:03:05]} 8... Re8+ {[%clk 0:03:03.4]} 9. Ne2 {[%clk 0:03:05.7]} 9... h5 {[%clk
0:03:03.2]} 10. h3 {[%clk 0:03:06.2]} 10... Nd7 {[%clk 0:03:02.1]} 11. Bd2
{[%clk 0:03:06.7]} 11... Nf8 {[%clk 0:03:01.4]} 12. O-O-O {[%clk 0:03:07.1]}
12... Be6 {[%clk 0:03:00.4]} 13. Kb1 {[%clk 0:03:07.2]} 13... b5 {[%clk
0:02:58.4]} 14. Rhg1 {[%clk 0:03:05]} 14... a5 {[%clk 0:02:49.7]} 15. g4 {[%clk
0:03:03.7]} 15... h4 {[%clk 0:02:49.7]} 16. g5 {[%clk 0:02:38.2]} 16... f5
{[%clk 0:02:48.3]} 17. Nc1 {[%clk 0:02:16.4]} 17... g6 {[%clk 0:02:46.4]} 18.
Rge1 {[%clk 0:01:30.3]} 18... Qb6 {[%clk 0:02:40.9]} 19. f4 {[%clk 0:01:20.2]}
19... Qc7 {[%clk 0:02:38.6]} 20. Rf1 {[%clk 0:01:15.7]} 20... Reb8 {[%clk
0:02:33.6]} 21. c4 {[%clk 0:01:08.2]} 21... bxc4 {[%clk 0:02:31.3]} 22. Bxc4
{[%clk 0:01:09.1]} 22... a4 {[%clk 0:02:23.2]} 23. Nd3 {[%clk 0:01:05.1]} 23...
Qb6 {[%clk 0:02:14]} 24. Be3 {[%clk 0:00:35.9]} 24... Bd5 {[%clk 0:02:06.9]} 25.
Bxd5 {[%clk 0:00:30.1]} 25... cxd5 {[%clk 0:02:06.6]} 26. Nc5 {[%clk 0:00:31]}
26... Re8 {[%clk 0:01:55.7]} 27. Qf2 {[%clk 0:00:30.5]} 27... Rab8 {[%clk
0:01:46.3]} 28. Rfe1 {[%clk 0:00:28.9]} 28... Qb4 {[%clk 0:01:39.3]} 29. Bc1
{[%clk 0:00:22.6]} 29... Rxe1 {[%clk 0:01:31]} 30. Rxe1 {[%clk 0:00:23.5]} 30...
Rc8 {[%clk 0:01:18.4]} 31. Be3 {[%clk 0:00:18.4]} 31... Bxc5 {[%clk 0:01:02.6]}
32. dxc5 {[%clk 0:00:19.3]} 32... Ne6 {[%clk 0:01:02.9]} 33. Rd1 {[%clk
0:00:07.7]} 33... d4 {[%clk 0:00:47.6]} 34. Bd2 {[%clk 0:00:04.5]} 34... Qxc5
{[%clk 0:00:45.3]} 35. Rc1 {[%clk 0:00:04.9]} 35... Qf8 {[%clk 0:00:30.8]} 36.
Qxh4 {[%clk 0:00:04.8]} 36... Rxc1+ {[%clk 0:00:28]} 37. Bxc1 {[%clk 0:00:04.1]}
37... Qc5 {[%clk 0:00:21.9]} 38. Qf2 {[%clk 0:00:04.1]} 38... Qd5 {[%clk
0:00:15.6]} 39. Qc2 {[%clk 0:00:03.7]} 39... Qe4 {[%clk 0:00:14.3]} 40. b3
{[%clk 0:00:02.5]} 40... axb3 {[%clk 0:00:14]} 41. axb3 {[%clk 0:00:03.4]} 41...
Nc5 {[%clk 0:00:10.7]} 42. b4 {[%clk 0:00:02.8]} 42... Nd3 {[%clk 0:00:08.8]}
43. Bd2 {[%clk 0:00:02.9]} 43... Qh1+ {[%clk 0:00:05.2]} 44. Ka2 {[%clk
0:00:03]} 44... Qxh3 {[%clk 0:00:06.1]} 45. b5 {[%clk 0:00:02.4]} 45... Qf3
{[%clk 0:00:03.1]} 46. Qc8+ {[%clk 0:00:02.4]} 46... Kg7 {[%clk 0:00:02.5]} 47.
b6 {[%clk 0:00:03]} 47... Qd5+ {[%clk 0:00:02.7]} 48. Ka1 {[%clk 0:00:01.7]}
48... Qb3 {[%clk 0:00:02.6]} 49. b7 {[%clk 0:00:01.1]} 49... Qb2# {[%clk
0:00:03]} 0-1

[Event "Late-Titled-Tuesday-Blitz-October-03-2023"]
[Site "Chess.com"]
[Date "2023.10.03"]
[Round "8"]
[White "chessmoo"]
[Black "Mikhail_Golubev"]
[Result "0-1"]
[WhiteElo "2461"]
[BlackElo "2604"]
[TimeControl "180+1"]
[EndTime "15:25:14 PDT"]
[Termination "Mikhail_Golubev won by resignation"]

1. c4 {[%clk 0:03:00.9]} 1... g6 {[%clk 0:02:59.8]} 2. g3 {[%clk 0:02:59.2]}
2... Bg7 {[%clk 0:03:00.1]} 3. Bg2 {[%clk 0:02:59.5]} 3... e5 {[%clk 0:03:00.8]}
4. Nc3 {[%clk 0:02:58.8]} 4... Nc6 {[%clk 0:03:00.9]} 5. e3 {[%clk 0:02:48.3]}
5... d6 {[%clk 0:02:58.6]} 6. Nge2 {[%clk 0:02:48.5]} 6... Nf6 {[%clk
0:02:58.7]} 7. d4 {[%clk 0:02:48.3]} 7... O-O {[%clk 0:02:53.5]} 8. O-O {[%clk
0:02:48]} 8... exd4 {[%clk 0:02:51.3]} 9. Nxd4 {[%clk 0:02:47.9]} 9... Nxd4
{[%clk 0:02:48]} 10. Qxd4 {[%clk 0:02:48.8]} 10... Ng4 {[%clk 0:02:36]} 11. Qd2
{[%clk 0:02:46.6]} 11... Ne5 {[%clk 0:02:28.6]} 12. b3 {[%clk 0:02:45.1]} 12...
Bh3 {[%clk 0:02:23.4]} 13. f4 {[%clk 0:02:19.8]} 13... Bxg2 {[%clk 0:02:20.9]}
14. Kxg2 {[%clk 0:02:19.9]} 14... Ng4 {[%clk 0:02:16.8]} 15. h3 {[%clk
0:02:13.7]} 15... Nf6 {[%clk 0:02:14.6]} 16. Bb2 {[%clk 0:01:59.3]} 16... Re8
{[%clk 0:02:14.4]} 17. Rae1 {[%clk 0:01:48.1]} 17... Qd7 {[%clk 0:02:13.7]} 18.
e4 {[%clk 0:01:33.5]} 18... Qc6 {[%clk 0:02:06.7]} 19. Nd5 {[%clk 0:01:22.5]}
19... Nxe4 {[%clk 0:02:05.3]} 20. Rxe4 {[%clk 0:01:16.3]} 20... Rxe4 {[%clk
0:02:02.5]} 21. Bxg7 {[%clk 0:01:15.9]} 21... Kxg7 {[%clk 0:01:35.8]} 22. Qc3+
{[%clk 0:01:00.2]} 22... Kg8 {[%clk 0:01:26.4]} 23. Nf6+ {[%clk 0:00:57.8]}
23... Kf8 {[%clk 0:01:26.4]} 24. Nxe4 {[%clk 0:00:36.1]} 24... Qxe4+ {[%clk
0:01:25.6]} 25. Qf3 {[%clk 0:00:37]} 25... Re8 {[%clk 0:01:21.3]} 26. Qxe4
{[%clk 0:00:36.3]} 26... Rxe4 {[%clk 0:01:21.2]} 27. Kf3 {[%clk 0:00:37.1]}
27... f5 {[%clk 0:01:19.9]} 28. Rd1 {[%clk 0:00:36.2]} 28... Ke7 {[%clk
0:01:19.9]} 29. Kf2 {[%clk 0:00:36.7]} 29... b6 {[%clk 0:01:19.2]} 30. Rd2
{[%clk 0:00:35.9]} 30... a6 {[%clk 0:01:19.1]} 31. Rd1 {[%clk 0:00:36.2]} 31...
b5 {[%clk 0:01:18.1]} 32. cxb5 {[%clk 0:00:34]} 32... axb5 {[%clk 0:01:18.4]}
33. Kf3 {[%clk 0:00:29.3]} 33... b4 {[%clk 0:01:13.8]} 34. Ra1 {[%clk
0:00:26.7]} 34... d5 {[%clk 0:01:03.6]} 35. a4 {[%clk 0:00:21.3]} 35... bxa3
{[%clk 0:01:02.4]} 36. Rxa3 {[%clk 0:00:21.7]} 36... Rb4 {[%clk 0:01:00.1]} 37.
g4 {[%clk 0:00:20.3]} 37... fxg4+ {[%clk 0:00:50.1]} 38. hxg4 {[%clk 0:00:20.3]}
38... h6 {[%clk 0:00:50.1]} 39. Kg3 {[%clk 0:00:18]} 39... Kd6 {[%clk
0:00:46.6]} 40. Kf3 {[%clk 0:00:15.1]} 40... c6 {[%clk 0:00:46.8]} 41. Ke3
{[%clk 0:00:14.9]} 41... g5 {[%clk 0:00:40.6]} 42. fxg5 {[%clk 0:00:13.9]} 42...
hxg5 {[%clk 0:00:41.5]} 43. Kf3 {[%clk 0:00:14]} 43... Rf4+ {[%clk 0:00:40.2]}
44. Kg3 {[%clk 0:00:14.3]} 44... Rb4 {[%clk 0:00:40.1]} 45. Kf3 {[%clk 0:00:14]}
45... Ke5 {[%clk 0:00:40.3]} 46. Kg3 {[%clk 0:00:10.4]} 46... c5 {[%clk
0:00:37.2]} 47. Kf3 {[%clk 0:00:09.5]} 47... Kd4 {[%clk 0:00:33.1]} 48. Kg3
{[%clk 0:00:07.9]} 48... Kc3 {[%clk 0:00:32.4]} 49. Ra5 {[%clk 0:00:08.2]} 49...
Rxb3 {[%clk 0:00:32.7]} 50. Ra8 {[%clk 0:00:07.5]} 50... Kd4+ {[%clk 0:00:31.6]}
51. Kf2 {[%clk 0:00:07.3]} 51... c4 {[%clk 0:00:31.9]} 52. Rg8 {[%clk
0:00:07.9]} 52... c3 {[%clk 0:00:28.8]} 53. Ke2 {[%clk 0:00:08.5]} 53... Rb2+
{[%clk 0:00:27.8]} 54. Kd1 {[%clk 0:00:08.8]} 54... Kd3 {[%clk 0:00:27.3]} 55.
Kc1 {[%clk 0:00:08]} 55... Rg2 {[%clk 0:00:23.1]} 56. Kb1 {[%clk 0:00:08.1]}
56... Rg1+ {[%clk 0:00:20.2]} 57. Ka2 {[%clk 0:00:07.7]} 57... c2 {[%clk
0:00:20.4]} 58. Rxg5 {[%clk 0:00:07.9]} 58... c1=Q {[%clk 0:00:18.2]} 59. Rxd5+
{[%clk 0:00:08.5]} 59... Kc4 {[%clk 0:00:18.2]} 60. Rc5+ {[%clk 0:00:08.9]}
60... Kxc5 {[%clk 0:00:18.1]} 61. g5 {[%clk 0:00:07.6]} 61... Kb4 {[%clk
0:00:17.9]} 0-1

[Event "Late-Titled-Tuesday-Blitz-October-03-2023"]
[Site "Chess.com"]
[Date "2023.10.03"]
[Round "8"]
[White "FabianoCaruana"]
[Black "Hikaru"]
[Result "1/2-1/2"]
[WhiteElo "3082"]
[BlackElo "3276"]
[TimeControl "180+1"]
[EndTime "15:25:19 PDT"]
[Termination "Game drawn by repetition"]

1. d4 {[%clk 0:03:00.9]} 1... Nf6 {[%clk 0:02:59.5]} 2. c4 {[%clk 0:03:01.2]}
2... e6 {[%clk 0:03:00]} 3. Nf3 {[%clk 0:03:00.9]} 3... b6 {[%clk 0:02:59.8]} 4.
g3 {[%clk 0:03:00.5]} 4... Bb7 {[%clk 0:02:59.8]} 5. Bg2 {[%clk 0:03:00.9]} 5...
Bb4+ {[%clk 0:03:00.6]} 6. Bd2 {[%clk 0:03:00.7]} 6... Bxd2+ {[%clk 0:03:01]} 7.
Qxd2 {[%clk 0:02:56.3]} 7... O-O {[%clk 0:03:00.2]} 8. O-O {[%clk 0:02:56.5]}
8... d6 {[%clk 0:02:59.7]} 9. Nc3 {[%clk 0:02:56.7]} 9... Ne4 {[%clk 0:02:58.6]}
10. Qc2 {[%clk 0:02:44.6]} 10... Nxc3 {[%clk 0:02:53.2]} 11. Qxc3 {[%clk
0:02:45.5]} 11... Nd7 {[%clk 0:02:50.6]} 12. Rfe1 {[%clk 0:02:39.7]} 12... Nf6
{[%clk 0:02:41.2]} 13. Rad1 {[%clk 0:02:39.8]} 13... Qe7 {[%clk 0:02:37.7]} 14.
Nh4 {[%clk 0:02:18.4]} 14... Bxg2 {[%clk 0:02:35.6]} 15. Nxg2 {[%clk 0:02:19.3]}
15... e5 {[%clk 0:02:32.8]} 16. e4 {[%clk 0:02:17.5]} 16... Rfd8 {[%clk
0:02:10.6]} 17. f3 {[%clk 0:02:16.9]} 17... Re8 {[%clk 0:01:57.9]} 18. Ne3
{[%clk 0:02:16.9]} 18... Rad8 {[%clk 0:01:57.6]} 19. Nf5 {[%clk 0:02:12.5]}
19... Qe6 {[%clk 0:01:54.5]} 20. Kg2 {[%clk 0:02:06.5]} 20... g6 {[%clk
0:01:46.1]} 21. Ne3 {[%clk 0:02:06.7]} 21... c5 {[%clk 0:01:44.2]} 22. dxc5
{[%clk 0:02:05.2]} 22... dxc5 {[%clk 0:01:44.3]} 23. Nd5 {[%clk 0:02:05.3]}
23... Rc8 {[%clk 0:01:19.6]} 24. f4 {[%clk 0:01:49.9]} 24... Nd7 {[%clk
0:01:01.8]} 25. Qf3 {[%clk 0:01:36.3]} 25... f5 {[%clk 0:00:58.9]} 26. exf5
{[%clk 0:01:34]} 26... Qxf5 {[%clk 0:00:59.8]} 27. Ne3 {[%clk 0:01:21.6]} 27...
Qf7 {[%clk 0:00:56.4]} 28. Ng4 {[%clk 0:01:21.8]} 28... Kh8 {[%clk 0:00:29.2]}
29. fxe5 {[%clk 0:01:12.5]} 29... Qxf3+ {[%clk 0:00:27.7]} 30. Kxf3 {[%clk
0:01:13.4]} 30... Nf8 {[%clk 0:00:24.6]} 31. Nf6 {[%clk 0:01:11.3]} 31... Re7
{[%clk 0:00:24.8]} 32. Ke4 {[%clk 0:00:45.9]} 32... Ne6 {[%clk 0:00:23.5]} 33.
Rd7 {[%clk 0:00:45.1]} 33... Rxd7 {[%clk 0:00:19.3]} 34. Nxd7 {[%clk 0:00:46]}
34... Rd8 {[%clk 0:00:20.2]} 35. Rd1 {[%clk 0:00:22.5]} 35... Nd4 {[%clk
0:00:17]} 36. Nf6 {[%clk 0:00:20.8]} 36... Kg7 {[%clk 0:00:16.9]} 37. b4 {[%clk
0:00:18.3]} 37... Rb8 {[%clk 0:00:15.2]} 38. Nd7 {[%clk 0:00:13.6]} 38... Rc8
{[%clk 0:00:15]} 39. bxc5 {[%clk 0:00:13.7]} 39... bxc5 {[%clk 0:00:15.8]} 40.
Nxc5 {[%clk 0:00:14.2]} 40... Nf5 {[%clk 0:00:16]} 41. Rd7+ {[%clk 0:00:12.6]}
41... Kh6 {[%clk 0:00:16.5]} 42. Ne6 {[%clk 0:00:08.5]} 42... Rxc4+ {[%clk
0:00:16.7]} 43. Kd5 {[%clk 0:00:09.1]} 43... Ra4 {[%clk 0:00:17.3]} 44. Nf8
{[%clk 0:00:09.1]} 44... Ra5+ {[%clk 0:00:12.2]} 45. Ke6 {[%clk 0:00:08.8]}
45... Ng7+ {[%clk 0:00:12.7]} 46. Kf6 {[%clk 0:00:06.5]} 46... Nh5+ {[%clk
0:00:13.2]} 47. Ke6 {[%clk 0:00:06]} 47... Ng7+ {[%clk 0:00:13.8]} 48. Kd6
{[%clk 0:00:06.7]} 48... Nf5+ {[%clk 0:00:13.2]} 49. Kc6 {[%clk 0:00:06.8]}
49... Rxe5 {[%clk 0:00:13.6]} 50. h4 {[%clk 0:00:05.4]} 50... Kh5 {[%clk
0:00:13.7]} 51. Nxh7 {[%clk 0:00:04.6]} 51... Nxg3 {[%clk 0:00:09.8]} 52. Rxa7
{[%clk 0:00:03.6]} 52... Kxh4 {[%clk 0:00:09.5]} 53. Nf8 {[%clk 0:00:04.1]}
53... Kg4 {[%clk 0:00:07.8]} 54. a4 {[%clk 0:00:03.7]} 54... g5 {[%clk
0:00:08.1]} 55. a5 {[%clk 0:00:04.2]} 55... Nf5 {[%clk 0:00:08.1]} 56. a6 {[%clk
0:00:04.5]} 56... Nd4+ {[%clk 0:00:08.3]} 57. Kb6 {[%clk 0:00:03.7]} 57... Rb5+
{[%clk 0:00:07]} 58. Kc7 {[%clk 0:00:04.3]} 58... Ra5 {[%clk 0:00:07.7]} 59. Kb6
{[%clk 0:00:04.4]} 59... Rb5+ {[%clk 0:00:08.1]} 60. Kc7 {[%clk 0:00:04.9]}
60... Ra5 {[%clk 0:00:05.4]} 61. Kb6 {[%clk 0:00:04]} 61... Rb5+ {[%clk
0:00:05.7]} 1/2-1/2

[Event "Late-Titled-Tuesday-Blitz-October-03-2023"]
[Site "Chess.com"]
[Date "2023.10.03"]
[Round "8"]
[White "Angry_Twin"]
[Black "Msb2"]
[Result "0-1"]
[WhiteElo "2933"]
[BlackElo "3068"]
[TimeControl "180+1"]
[EndTime "15:25:21 PDT"]
[Termination "Msb2 won by resignation"]

1. e4 {[%clk 0:03:00.9]} 1... e6 {[%clk 0:03:00.3]} 2. d4 {[%clk 0:03:01.5]}
2... d5 {[%clk 0:03:00.9]} 3. Nc3 {[%clk 0:03:02.2]} 3... Nf6 {[%clk 0:03:00.9]}
4. e5 {[%clk 0:03:02.5]} 4... Nfd7 {[%clk 0:03:01.5]} 5. f4 {[%clk 0:03:02.7]}
5... c5 {[%clk 0:03:02.2]} 6. Nf3 {[%clk 0:03:03.4]} 6... Nc6 {[%clk 0:03:03.1]}
7. Be3 {[%clk 0:03:03.6]} 7... a6 {[%clk 0:03:03.6]} 8. Qd2 {[%clk 0:03:02.9]}
8... b5 {[%clk 0:03:03.9]} 9. dxc5 {[%clk 0:02:59.5]} 9... Bxc5 {[%clk
0:03:04.8]} 10. Bd3 {[%clk 0:02:59.7]} 10... Qb6 {[%clk 0:03:05.3]} 11. Bf2
{[%clk 0:03:00.1]} 11... Bb7 {[%clk 0:03:05.9]} 12. O-O {[%clk 0:02:59.2]} 12...
h6 {[%clk 0:03:06.5]} 13. a3 {[%clk 0:02:59]} 13... Bxf2+ {[%clk 0:03:04]} 14.
Qxf2 {[%clk 0:02:58.9]} 14... Qxf2+ {[%clk 0:03:03.9]} 15. Kxf2 {[%clk
0:02:59.8]} 15... g5 {[%clk 0:03:04]} 16. g3 {[%clk 0:03:00.1]} 16... g4 {[%clk
0:03:02.7]} 17. Ne1 {[%clk 0:02:40.3]} 17... h5 {[%clk 0:03:01.2]} 18. Ng2
{[%clk 0:02:36.4]} 18... O-O-O {[%clk 0:02:45.7]} 19. b4 {[%clk 0:02:34.1]}
19... f6 {[%clk 0:02:38.9]} 20. exf6 {[%clk 0:02:32.2]} 20... Nxf6 {[%clk
0:02:39.8]} 21. Rfe1 {[%clk 0:02:32.4]} 21... Rhe8 {[%clk 0:02:40.2]} 22. Nh4
{[%clk 0:02:25.8]} 22... e5 {[%clk 0:02:38.3]} 23. Bg6 {[%clk 0:02:26]} 23...
Re7 {[%clk 0:02:22.2]} 24. Bf5+ {[%clk 0:02:26]} 24... Kb8 {[%clk 0:02:09.1]}
25. Ng6 {[%clk 0:02:26]} 25... Rc7 {[%clk 0:02:07.5]} 26. fxe5 {[%clk
0:02:11.3]} 26... Nxe5 {[%clk 0:02:06.1]} 27. Nxb5 {[%clk 0:01:59.9]} 27... axb5
{[%clk 0:02:05.9]} 28. Nxe5 {[%clk 0:01:59]} 28... Ne4+ {[%clk 0:01:53]} 29.
Bxe4 {[%clk 0:01:58.2]} 29... dxe4 {[%clk 0:01:53.9]} 30. Re2 {[%clk 0:01:58.7]}
30... Rd6 {[%clk 0:01:36.8]} 31. Rae1 {[%clk 0:00:43.6]} 31... Rc3 {[%clk
0:01:19.6]} 32. Kg1 {[%clk 0:00:39.3]} 32... Rxa3 {[%clk 0:01:19.6]} 33. Nf7
{[%clk 0:00:37.6]} 33... Rd4 {[%clk 0:01:14.9]} 34. Ng5 {[%clk 0:00:37.6]} 34...
e3 {[%clk 0:00:55.1]} 35. Rxe3 {[%clk 0:00:37.9]} 35... Rxe3 {[%clk 0:00:56]}
36. Rxe3 {[%clk 0:00:38.7]} 36... Rd2 {[%clk 0:00:56.9]} 37. Re8+ {[%clk
0:00:35.9]} 37... Ka7 {[%clk 0:00:56.4]} 38. Ne6 {[%clk 0:00:31.9]} 38... Rg2+
{[%clk 0:00:54.8]} 39. Kf1 {[%clk 0:00:31.9]} 39... Rxh2 {[%clk 0:00:50.7]} 40.
Nc5 {[%clk 0:00:32.1]} 40... Bd5 {[%clk 0:00:48.5]} 41. Re5 {[%clk 0:00:22.6]}
41... Bf3 {[%clk 0:00:34.9]} 42. c3 {[%clk 0:00:18.6]} 42... h4 {[%clk
0:00:33.2]} 43. Ne4 {[%clk 0:00:09.2]} 43... h3 {[%clk 0:00:09.8]} 44. Re7+
{[%clk 0:00:09]} 44... Kb6 {[%clk 0:00:09.9]} 45. Re6+ {[%clk 0:00:04.2]} 45...
Kb7 {[%clk 0:00:10.1]} 46. Nc5+ {[%clk 0:00:01.6]} 46... Kc7 {[%clk 0:00:10.5]}
47. Rh6 {[%clk 0:00:02.1]} 47... Rg2 {[%clk 0:00:10.4]} 48. Rh7+ {[%clk
0:00:01.9]} 48... Kd6 {[%clk 0:00:10.6]} 49. Rh5 {[%clk 0:00:02.1]} 49... Rxg3
{[%clk 0:00:10.4]} 50. Kf2 {[%clk 0:00:02.3]} 50... Rg2+ {[%clk 0:00:11]} 51.
Ke3 {[%clk 0:00:02.9]} 51... h2 {[%clk 0:00:09.7]} 52. Rh6+ {[%clk 0:00:03]}
52... Ke7 {[%clk 0:00:09.7]} 53. Nd3 {[%clk 0:00:02.1]} 53... Re2+ {[%clk
0:00:09.8]} 54. Kd4 {[%clk 0:00:02.2]} 54... h1=Q {[%clk 0:00:10.7]} 55. Rxh1
{[%clk 0:00:02.3]} 55... Bxh1 {[%clk 0:00:11.6]} 56. Kc5 {[%clk 0:00:02]} 56...
g3 {[%clk 0:00:11.2]} 57. Nf4 {[%clk 0:00:02.2]} 57... Re5+ {[%clk 0:00:11.2]}
58. Kd4 {[%clk 0:00:02.3]} 58... Re4+ {[%clk 0:00:11.8]} 59. Kd3 {[%clk
0:00:03.2]} 59... Rxf4 {[%clk 0:00:12.7]} 0-1

[Event "Late-Titled-Tuesday-Blitz-October-03-2023"]
[Site "Chess.com"]
[Date "2023.10.03"]
[Round "8"]
[White "MikaelyanArman"]
[Black "RichardLeyvaP"]
[Result "0-1"]
[WhiteElo "2830"]
[BlackElo "2621"]
[TimeControl "180+1"]
[EndTime "15:25:21 PDT"]
[Termination "RichardLeyvaP won by checkmate"]

1. e4 {[%clk 0:03:00.9]} 1... e5 {[%clk 0:02:58.6]} 2. Bc4 {[%clk 0:03:00.8]}
2... Nf6 {[%clk 0:02:58.1]} 3. d3 {[%clk 0:03:01.4]} 3... c6 {[%clk 0:02:58.5]}
4. Nf3 {[%clk 0:03:00.6]} 4... Be7 {[%clk 0:02:58.3]} 5. O-O {[%clk 0:02:59.1]}
5... d6 {[%clk 0:02:58]} 6. a4 {[%clk 0:02:57.4]} 6... h6 {[%clk 0:02:57.1]} 7.
Nbd2 {[%clk 0:02:49.2]} 7... b6 {[%clk 0:02:56.5]} 8. c3 {[%clk 0:02:46.2]} 8...
a6 {[%clk 0:02:55.7]} 9. d4 {[%clk 0:02:36]} 9... Qc7 {[%clk 0:02:55.4]} 10. Re1
{[%clk 0:02:30.9]} 10... Nbd7 {[%clk 0:02:55.4]} 11. Nf1 {[%clk 0:02:30.8]}
11... Nf8 {[%clk 0:02:54.7]} 12. Ng3 {[%clk 0:02:28.3]} 12... Ng6 {[%clk
0:02:54.7]} 13. Nf5 {[%clk 0:02:25]} 13... O-O {[%clk 0:02:54.5]} 14. Bb3 {[%clk
0:02:04.4]} 14... Re8 {[%clk 0:02:41.9]} 15. h4 {[%clk 0:00:55]} 15... Bf8
{[%clk 0:02:40.1]} 16. Bc2 {[%clk 0:00:47.9]} 16... Bd7 {[%clk 0:02:19.1]} 17.
h5 {[%clk 0:00:42.7]} 17... Ne7 {[%clk 0:01:51.7]} 18. N3h4 {[%clk 0:00:27.9]}
18... Nxf5 {[%clk 0:01:51.1]} 19. Nxf5 {[%clk 0:00:28.2]} 19... Bxf5 {[%clk
0:01:47.5]} 20. exf5 {[%clk 0:00:29.1]} 20... exd4 {[%clk 0:01:46.1]} 21. cxd4
{[%clk 0:00:24.8]} 21... Rxe1+ {[%clk 0:01:42.3]} 22. Qxe1 {[%clk 0:00:25.7]}
22... d5 {[%clk 0:01:42.5]} 23. Qd1 {[%clk 0:00:21.9]} 23... a5 {[%clk
0:01:41.8]} 24. Be3 {[%clk 0:00:21.9]} 24... Bd6 {[%clk 0:01:34.8]} 25. Qf3
{[%clk 0:00:21.8]} 25... Re8 {[%clk 0:01:32.2]} 26. Bd3 {[%clk 0:00:21.6]} 26...
Qd7 {[%clk 0:01:21]} 27. Rc1 {[%clk 0:00:19.7]} 27... Bb8 {[%clk 0:01:19.6]} 28.
g3 {[%clk 0:00:18.9]} 28... Qd6 {[%clk 0:01:16.1]} 29. Bf4 {[%clk 0:00:16.6]}
29... Qd7 {[%clk 0:01:16.1]} 30. Be3 {[%clk 0:00:11]} 30... Bd6 {[%clk 0:01:08]}
31. Kg2 {[%clk 0:00:11.4]} 31... Ne4 {[%clk 0:01:04]} 32. Rc2 {[%clk 0:00:11]}
32... f6 {[%clk 0:01:00.1]} 33. b3 {[%clk 0:00:10.6]} 33... Ng5 {[%clk
0:00:56.2]} 34. Qg4 {[%clk 0:00:10.7]} 34... Nf7 {[%clk 0:00:48.2]} 35. Bf1
{[%clk 0:00:09.7]} 35... Re4 {[%clk 0:00:47.5]} 36. Qf3 {[%clk 0:00:09]} 36...
Re8 {[%clk 0:00:44.4]} 37. Bd3 {[%clk 0:00:09]} 37... Rc8 {[%clk 0:00:44.6]} 38.
Qg4 {[%clk 0:00:08.1]} 38... Bf8 {[%clk 0:00:35.5]} 39. Qf3 {[%clk 0:00:08]}
39... Nd6 {[%clk 0:00:35.6]} 40. g4 {[%clk 0:00:06.9]} 40... Nf7 {[%clk
0:00:28.2]} 41. Bf4 {[%clk 0:00:07.4]} 41... Bd6 {[%clk 0:00:28.1]} 42. Be3
{[%clk 0:00:07.3]} 42... Bb8 {[%clk 0:00:28.3]} 43. Kf1 {[%clk 0:00:06.8]} 43...
Qd6 {[%clk 0:00:28.7]} 44. Ke1 {[%clk 0:00:06.8]} 44... Re8 {[%clk 0:00:28.9]}
45. Kd2 {[%clk 0:00:07.1]} 45... Qd7 {[%clk 0:00:29.3]} 46. Kc1 {[%clk
0:00:07.2]} 46... Bd6 {[%clk 0:00:29.4]} 47. Kb2 {[%clk 0:00:07.7]} 47... Bb4
{[%clk 0:00:29.7]} 48. Bf4 {[%clk 0:00:07.7]} 48... c5 {[%clk 0:00:29.5]} 49.
Bb5 {[%clk 0:00:07.5]} 49... Qd8 {[%clk 0:00:28.1]} 50. Bxe8 {[%clk 0:00:07.7]}
50... Qxe8 {[%clk 0:00:29]} 51. Qxd5 {[%clk 0:00:08.2]} 51... cxd4 {[%clk
0:00:28.4]} 52. Qe6 {[%clk 0:00:07]} 52... Bc3+ {[%clk 0:00:24.1]} 53. Ka2
{[%clk 0:00:05.2]} 53... Qf8 {[%clk 0:00:24.3]} 54. Qxb6 {[%clk 0:00:03.4]}
54... Kh7 {[%clk 0:00:23.9]} 55. Qb5 {[%clk 0:00:02.9]} 55... Qe7 {[%clk
0:00:19.7]} 56. Qd3 {[%clk 0:00:03.3]} 56... Qe1 {[%clk 0:00:19.1]} 57. Bc1
{[%clk 0:00:02.7]} 57... Ne5 {[%clk 0:00:18.4]} 58. Qb5 {[%clk 0:00:02.4]} 58...
Qd1 {[%clk 0:00:18]} 59. Qe2 {[%clk 0:00:02.2]} 59... Qg1 {[%clk 0:00:17]} 60.
Bb2 {[%clk 0:00:02.8]} 60... d3 {[%clk 0:00:14.2]} 61. Rc1 {[%clk 0:00:03.3]}
61... Qxc1 {[%clk 0:00:12.8]} 62. Qxd3 {[%clk 0:00:03]} 62... Qxb2# {[%clk
0:00:12.7]} 0-1